fUSD/lending_fUSD_20241227
["ID","MTS","AMOUNT","RATE_DAILY","PERIOD"]
[346809362,1735301827912,-300.0,0.00010782,2]
[346809363,1735301827936,-5000.0,0.00010783,2]
[346809364,1735301827958,-3062.19,0.00010881,2]
[346809365,1735301827982,-8047.68,0.00010881,2]
[346809366,1735301828006,-993.46,0.00010881,2]
[346809367,1735301828029,-2311.17,0.00010881,2]
[346809368,1735301828051,-500.0,0.00010881,2]
[346809369,1735301828075,-1094.04,0.00010881,2]
[346809370,1735301828099,-4756.17,0.00010881,2]
[346809371,1735301828122,-2068.42,0.00010881,2]
[346809372,1735301828146,-7092.25,0.00010881,2]
[346809373,1735301828169,-3604.61,0.00010881,2]
[346809374,1735301828192,-6112.92,0.00010881,2]
[346809375,1735301828221,-2177.68,0.00010881,2]
[346809376,1735301828245,-3547.66,0.00010881,2]
[346809377,1735301828268,-1337.11,0.00010881,2]
[346809378,1735301828293,-6328.09,0.00010881,2]
[346809379,1735301828317,-500.0,0.00010881,2]
[346809380,1735301828341,-10350.86,0.00010881,2]
[346809381,1735301828364,-500.0,0.00010882,2]
[346809382,1735301828387,-612.98,0.00010882,2]
[346809383,1735301828411,-500.0,0.00010882,2]
[346809384,1735301828436,-500.0,0.00010882,2]
[346809385,1735301828460,-500.0,0.00010882,2]
[346809386,1735301828483,-500.0,0.00010882,2]
[346809387,1735301828506,-500.0,0.00010882,2]
[346809388,1735301828529,-1013.69,0.00010882,2]
[346809389,1735301828551,-1780.68,0.00010882,2]
[346809390,1735301828574,-960.9,0.00010882,2]
[346809391,1735301828597,-868.35,0.00010882,2]
[346809392,1735301828620,-500.0,0.00010882,2]
[346809393,1735301828643,-1749.94,0.00010882,2]
[346809394,1735301828667,-728.9,0.00010882,2]
[346809395,1735301828690,-975.19,0.00010882,2]
[346809396,1735301828713,-17413.83,0.00010882,2]
[346809397,1735301828736,-500.0,0.00010882,2]
[346809398,1735301828758,-282.3,0.00010882,2]
[346809399,1735301828781,-2127.11,0.00010882,2]
[346809400,1735301828805,-500.0,0.00010882,2]
[346809401,1735301828828,-500.0,0.00010882,2]
[346809402,1735301828851,-1850.53,0.00010882,2]
[346809403,1735301828874,-3339.03,0.00010882,2]
[346809404,1735301828897,-582.33,0.00010882,2]
[346809405,1735301828920,-500.0,0.00010882,2]
[346809406,1735301828945,-1534.27,0.00010882,2]
[346809407,1735301828969,-500.0,0.00010882,2]
[346809408,1735301828992,-645.22,0.00010882,2]
[346809409,1735301829017,-1883.37,0.00010882,2]
[346809410,1735301829042,-1214.03,0.00010882,2]
[346809411,1735301829066,-500.0,0.00010882,2]
[346809412,1735301829091,-5073.28,0.00010882,2]
[346809413,1735301829116,-2006.86,0.00010882,2]
[346809414,1735301829140,-614.73,0.00010882,2]
[346809415,1735301829163,-500.0,0.00010882,2]
[346809416,1735301829189,-500.0,0.00010882,2]
[346809417,1735301829219,-3646.48,0.00010882,2]
[346809418,1735301829243,-1017.63,0.00010882,2]
[346809419,1735301829269,-500.0,0.00010882,2]
[346809420,1735301829295,-3410.72,0.00010882,2]
[346809421,1735301829318,-866.43,0.00010882,2]
[346809422,1735301829342,-4163.71,0.00010882,2]
[346809423,1735301829365,-1291.41,0.00010882,2]
[346809424,1735301829389,-1062.8,0.00010882,2]
[346809425,1735301829412,-708.55,0.00010882,2]
[346809426,1735301829437,-3145.64,0.00010882,2]
[346809427,1735301829461,-726.38,0.00010882,2]
[346809428,1735301829485,-2568.4,0.00010882,2]
[346809429,1735301829508,-2314.58,0.00010882,2]
[346809430,1735301829531,-501.75235562,0.00010882,2]
[346809431,1735301829555,-1372.86,0.00010882,2]
[346809432,1735301829578,-1366.89,0.00010882,2]
[346809433,1735301829602,-1517.65,0.00010882,2]
[346809434,1735301829625,-1425.92,0.00010882,2]
[346809435,1735301829648,-2577.41,0.00010882,2]
[346809436,1735301829671,-500.0,0.00010882,2]
[346809437,1735301829695,-1102.53,0.00010882,2]
[346809438,1735301829717,-2159.24,0.00010882,2]
[346809439,1735301829739,-2588.62,0.00010882,2]
[346809440,1735301829763,-956.43,0.00010882,2]
[346809441,1735301829786,-1276.91,0.00010882,2]
[346809442,1735301829810,-4987.78,0.00010882,2]
[346809443,1735301829833,-2809.53,0.00010882,2]
[346809444,1735301829856,-872.21,0.00010882,2]
[346809445,1735301829880,-14379.69,0.00010882,2]
[346809446,1735301829904,-794.19,0.00010882,2]
[346809447,1735301829928,-1333.87,0.00010882,2]
[346809448,1735301829952,-500.0,0.00010882,2]
[346809449,1735301829976,-500.0,0.00010882,2]
[346809450,1735301830000,-529.27,0.00010882,2]
[346809451,1735301830028,-10693.26,0.00010882,2]
[346809452,1735301830052,-1761.06,0.00010882,2]
[346809453,1735301830076,-720.89,0.00010882,2]
[346809454,1735301830100,-500.0,0.00010882,2]
[346809455,1735301830124,-517.95,0.00010882,2]
[346809456,1735301830148,-500.0,0.00010882,2]
[346809457,1735301830172,-597.36,0.00010882,2]
[346809458,1735301830197,-500.0,0.00010882,2]
[346809459,1735301830222,-1248.19,0.00010882,2]
[346809460,1735301830441,-1068.96,0.00010882,2]
[346809461,1735301830479,-1004.63,0.00010882,2]
[346809462,1735301830503,-500.0,0.00010882,2]
[346809463,1735301830528,-500.0,0.00010882,2]
[346809464,1735301830552,-9443.87,0.00010882,2]
[346809465,1735301830575,-500.0,0.00010882,2]
[346809466,1735301830598,-500.0,0.00010882,2]
[346809467,1735301830620,-500.0,0.00010882,2]
[346809468,1735301830642,-500.0,0.00010882,2]
[346809469,1735301830665,-2853.19,0.00010882,2]
[346809470,1735301830693,-500.0,0.00010882,2]
[346809471,1735301830716,-514.09,0.00010882,2]
[346809472,1735301830739,-2978.64,0.00010882,2]
[346809473,1735301830761,-500.0,0.00010882,2]
[346809474,1735301830784,-500.0,0.00010882,2]
[346809475,1735301830806,-500.0,0.00010882,2]
[346809476,1735301830828,-500.0,0.00010882,2]
[346809477,1735301830851,-500.0,0.00010882,2]
[346809478,1735301830873,-500.0,0.00010882,2]
[346809479,1735301830896,-500.0,0.00010882,2]
[346809480,1735301830923,-500.0,0.00010882,2]
[346809481,1735301830948,-500.0,0.00010882,2]
[346809482,1735301830971,-2182.97,0.00010882,2]
[346809483,1735301830996,-556.12,0.00010882,2]
[346809484,1735301831020,-500.0,0.00010882,2]
[346809485,1735301831046,-1503.97,0.00010882,2]
[346809486,1735301831070,-1870.65,0.00010882,2]
[346809487,1735301831095,-500.0,0.00010882,2]
[346809488,1735301831120,-500.0,0.00010882,2]
[346809489,1735301831144,-864.06,0.00010882,2]
[346809490,1735301831168,-6314.9,0.00010882,2]
[346809491,1735301831202,-500.0,0.00010882,2]
[346809492,1735301831225,-500.0,0.00010882,2]
[346809493,1735301831248,-500.0,0.00010882,2]
[346809494,1735301831271,-858.31,0.00010882,2]
[346809495,1735301831298,-1374.97,0.00010882,2]
[346809496,1735301831322,-1140.06,0.00010882,2]
[346809497,1735301831344,-500.0,0.00010882,2]
[346809498,1735301831366,-500.0,0.00010882,2]
[346809499,1735301831388,-500.0,0.00010882,2]
[346809500,1735301831410,-2287.77,0.00010882,2]
[346809501,1735301831436,-500.0,0.00010882,2]
[346809502,1735301831460,-3123.24,0.00010882,2]
[346809503,1735301831482,-926.78,0.00010882,2]
[346809504,1735301831503,-500.0,0.00010882,2]
[346809505,1735301831525,-500.0,0.00010882,2]
[346809506,1735301831547,-500.0,0.00010882,2]
[346809507,1735301831569,-1297.49,0.00010882,2]
[346809508,1735301831591,-547.33327527,0.00010882,2]
[346809509,1735301831613,-586.84,0.00010882,2]
[346809510,1735301831634,-500.0,0.00010882,2]
[346809511,1735301831656,-815.48,0.00010882,2]
[346809512,1735301831681,-500.0,0.00010882,2]
[346809513,1735301831703,-500.0,0.00010882,2]
[346809514,1735301831725,-500.0,0.00010882,2]
[346809515,1735301831748,-1022.67,0.00010882,2]
[346809516,1735301831771,-2233.1,0.00010882,2]
[346809517,1735301831792,-500.0,0.00010882,2]
[346809518,1735301831814,-500.0,0.00010882,2]
[346809519,1735301831836,-500.0,0.00010882,2]
[346809520,1735301831858,-850.83,0.00010882,2]
[346809521,1735301831880,-1440.07,0.00010882,2]
[346809522,1735301831903,-973.75,0.00010882,2]
[346809523,1735301831928,-500.0,0.00010882,2]
[346809524,1735301831952,-6108.39,0.00010882,2]
[346809525,1735301831975,-752.54,0.00010882,2]
[346809526,1735301831998,-500.0,0.00010882,2]
[346809527,1735301832023,-524.25,0.00010882,2]
[346809528,1735301832046,-689.84,0.00010882,2]
[346809529,1735301832070,-1234.81,0.00010882,2]
[346809530,1735301832093,-4594.5,0.00010882,2]
[346809531,1735301832115,-500.0,0.00010882,2]
[346809532,1735301832138,-2072.42,0.00010882,2]
[346809533,1735301832161,-1413.14,0.00010882,2]
[346809534,1735301832186,-500.0,0.00010882,2]
[346809535,1735301832211,-500.0,0.00010882,2]
[346809536,1735301832233,-500.0,0.00010882,2]
[346809537,1735301832258,-1059.45,0.00010882,2]
[346809538,1735301832281,-1418.88,0.00010882,2]
[346809539,1735301832303,-500.0,0.00010882,2]
[346809540,1735301832325,-500.0,0.00010882,2]
[346809541,1735301832347,-500.0,0.00010882,2]
[346809542,1735301832370,-500.0,0.00010882,2]
[346809543,1735301832394,-823.11,0.00010882,2]
[346809544,1735301832421,-18373.64,0.00010882,2]
[346809545,1735301832444,-606.62,0.00010882,2]
[346809546,1735301832467,-527.45950687,0.00010882,2]
[346809547,1735301832490,-500.0,0.00010882,2]
[346809548,1735301832513,-500.0,0.00010882,2]
[346809549,1735301832537,-500.0,0.00010882,2]
[346809550,1735301832560,-500.0,0.00010882,2]
[346809551,1735301832582,-500.0,0.00010882,2]
[346809552,1735301832605,-4258.67,0.00010882,2]
[346809553,1735301832629,-500.0,0.00010882,2]
[346809554,1735301832652,-634.92,0.00010882,2]
[346809555,1735301832678,-4749.04,0.00010882,2]
[346809556,1735301832700,-500.0,0.00010882,2]
[346809557,1735301832723,-2189.72,0.00010882,2]
[346809558,1735301832745,-543.07941431,0.00010883,2]
[346809559,1735301832768,-500.0,0.00010883,2]
[346809560,1735301832792,-500.0,0.00010883,2]
[346809561,1735301832815,-500.0,0.00010883,2]
[346809562,1735301832838,-500.0,0.00010883,2]
[346809563,1735301832861,-500.0,0.00010883,2]
[346809564,1735301832883,-500.0,0.00010883,2]
[346809565,1735301832906,-500.0,0.00010883,2]
[346809566,1735301832930,-500.42696697,0.00010883,2]
[346809567,1735301832953,-500.0,0.00010883,2]
[346809568,1735301832976,-500.0,0.00010883,2]
[346809569,1735301832999,-505.61,0.00010883,2]
[346809570,1735301833022,-500.0,0.00010883,2]
[346809571,1735301833045,-506.11791809,0.00010883,2]
[346809572,1735301833069,-500.0,0.00010883,2]
[346809573,1735301833094,-639.22235222,0.00010883,2]
[346809574,1735301833118,-500.0,0.00010883,2]
[346809575,1735301833141,-500.0,0.00010883,2]
[346809576,1735301833166,-500.0,0.00010883,2]
[346809577,1735301833190,-500.0,0.00010883,2]
[346809578,1735301833218,-500.0,0.00010883,2]
[346809579,1735301833436,-500.0,0.00010883,2]
[346809580,1735301833460,-500.0,0.00010883,2]
[346809581,1735301833483,-500.0,0.00010883,2]
[346809582,1735301833506,-500.0,0.00010883,2]
[346809583,1735301833528,-500.0,0.00010883,2]
[346809584,1735301833553,-234.78109536,0.00010883,2]
[346809585,1735301833576,-608.8170654,0.00010883,2]
[346809586,1735301833600,-500.0,0.00010883,2]
[346809587,1735301833622,-500.0,0.00010883,2]
[346809588,1735301833644,-735.4,0.00010883,2]
[346809589,1735301833667,-1296.04,0.00010883,2]
[346809590,1735301833690,-500.0,0.00010883,2]
[346809591,1735301833713,-1235.96,0.00010883,2]
[346809592,1735301833736,-500.0,0.00010883,2]
[346809593,1735301833759,-500.0,0.00010883,2]
[346809594,1735301833783,-500.0,0.00010883,2]
[346809595,1735301833804,-500.0,0.00010883,2]
[346809596,1735301833826,-500.0,0.00010883,2]
[346809597,1735301833849,-500.0,0.00010883,2]
[346809598,1735301833871,-500.0,0.00010883,2]
[346809599,1735301833896,-1827.8,0.00010883,2]
[346809600,1735301833919,-500.0,0.00010883,2]
[346809601,1735301833943,-500.0,0.00010883,2]
[346809602,1735301833966,-2415.82,0.00010883,2]
[346809603,1735301833988,-500.0,0.00010883,2]
[346809604,1735301834009,-209.14611293,0.00010883,2]
[346809605,1735301834032,-668.93,0.00010883,2]
[346809606,1735301834055,-500.0,0.00010883,2]
[346809607,1735301834077,-500.0,0.00010883,2]
[346809608,1735301834100,-2157.78,0.00010883,2]
[346809609,1735301834123,-500.0,0.00010883,2]
[346809610,1735301834145,-500.0,0.00010883,2]
[346809611,1735301834169,-500.0,0.00010883,2]
[346809612,1735301834191,-500.0,0.00010883,2]
[346809613,1735301834218,-500.0,0.00010883,2]
[346809614,1735301834246,-500.0,0.00010883,2]
[346809615,1735301834268,-500.0,0.00010883,2]
[346809616,1735301834292,-500.0,0.00010883,2]
[346809617,1735301834315,-500.0,0.00010883,2]
[346809618,1735301834338,-500.0,0.00010883,2]
[346809619,1735301834362,-500.0,0.00010883,2]
[346809620,1735301834384,-543.46671059,0.00010883,2]
[346809621,1735301834407,-500.0,0.00010883,2]
[346809622,1735301834429,-1203.82,0.00010883,2]
[346809623,1735301834465,-500.0,0.00010883,2]
[346809624,1735301834489,-1526.94,0.00010883,2]
[346809625,1735301834513,-500.0,0.00010883,2]
[346809626,1735301834537,-500.0,0.00010883,2]
[346809627,1735301834559,-267.93513643,0.00010883,2]
[346809628,1735301834582,-500.0,0.00010883,2]
[346809629,1735301834606,-577.50296656,0.00010883,2]
[346809630,1735301834628,-500.0,0.00010883,2]
[346809631,1735301834651,-500.0,0.00010883,2]
[346809632,1735301834675,-2589.16,0.00010883,2]
[346809633,1735301834699,-782.63,0.00010883,2]
[346809634,1735301834727,-1874.64,0.00010883,2]
[346809635,1735301834750,-500.0,0.00010883,2]
[346809636,1735301834779,-833.09,0.00010883,2]
[346809637,1735301834805,-500.0,0.00010883,2]
[346809638,1735301834829,-500.0,0.00010883,2]
[346809639,1735301834855,-500.0,0.00010883,2]
[346809640,1735301834878,-500.0,0.00010883,2]
[346809641,1735301834901,-500.0,0.00010883,2]
[346809642,1735301834925,-992.7,0.00010883,2]
[346809643,1735301834949,-500.0,0.00010883,2]
[346809644,1735301834972,-1454.01,0.00010883,2]
[346809645,1735301834995,-500.0,0.00010883,2]
[346809646,1735301835023,-500.0,0.00010883,2]
[346809647,1735301835048,-500.0,0.00010883,2]
[346809648,1735301835073,-1014.42,0.00010883,2]
[346809649,1735301835098,-617.01,0.00010883,2]
[346809650,1735301835123,-500.60454805,0.00010883,2]
[346809651,1735301835148,-500.0,0.00010883,2]
[346809652,1735301835173,-1551.35,0.00010883,2]
[346809653,1735301835199,-502.87692057,0.00010883,2]
[346809654,1735301835228,-466.52236243,0.00010883,2]
[346809655,1735301835253,-500.0,0.00010883,2]
[346809656,1735301835279,-852.96,0.00010883,2]
[346809657,1735301835305,-500.0,0.00010883,2]
[346809658,1735301835329,-500.0,0.00010883,2]
[346809659,1735301835354,-2065.73,0.00010883,2]
[346809660,1735301835378,-255.82362643,0.00010883,2]
[346809661,1735301835402,-500.0,0.00010883,2]
[346809662,1735301835426,-500.0,0.00010883,2]
[346809663,1735301835452,-500.0,0.00010883,2]
[346809664,1735301835476,-500.0,0.00010883,2]
[346809665,1735301835506,-500.0,0.00010883,2]
[346809666,1735301835530,-500.0,0.00010883,2]
[346809667,1735301835554,-504.97,0.00010883,2]
[346809668,1735301835577,-500.0,0.00010883,2]
[346809669,1735301835601,-500.0,0.00010883,2]
[346809670,1735301835625,-1200.96,0.00010883,2]
[346809671,1735301835651,-500.0,0.00010883,2]
[346809672,1735301835676,-500.0,0.00010883,2]
[346809673,1735301835699,-723.79,0.00010883,2]
[346809674,1735301835722,-500.0,0.00010883,2]
[346809675,1735301835746,-960.71,0.00010883,2]
[346809676,1735301835770,-500.0,0.00010883,2]
[346809677,1735301835794,-1259.46,0.00010883,2]
[346809678,1735301835818,-500.60198809,0.00010883,2]
[346809679,1735301835841,-500.0,0.00010883,2]
[346809680,1735301835866,-500.0,0.00010883,2]
[346809681,1735301835892,-500.0,0.00010883,2]
[346809682,1735301835917,-470.05125196,0.00010883,2]
[346809683,1735301835941,-500.0,0.00010883,2]
[346809684,1735301835966,-996.21,0.00010883,2]
[346809685,1735301835991,-535.91,0.00010883,2]
[346809686,1735301836016,-500.0,0.00010883,2]
[346809687,1735301836040,-1392.85,0.00010883,2]
[346809688,1735301836064,-500.0,0.00010883,2]
[346809689,1735301836088,-1575.96,0.00010883,2]
[346809690,1735301836112,-500.0,0.00010883,2]
[346809691,1735301836136,-1072.42,0.00010883,2]
[346809692,1735301836159,-300.0,0.00010883,2]
[346809693,1735301836189,-458.21174183,0.00010883,2]
[346809694,1735301836215,-505.98765573,0.00010883,2]
[346809695,1735301836241,-500.0,0.00010883,2]
[346809696,1735301836265,-500.0,0.00010883,2]
[346809697,1735301836291,-515.92614187,0.00010883,2]
[346809698,1735301836542,-500.0,0.00010883,2]
[346809699,1735301836566,-500.0,0.00010883,2]
[346809700,1735301836593,-500.0,0.00010883,2]
[346809701,1735301836619,-500.0,0.00010883,2]
[346809702,1735301836646,-500.0,0.00010883,2]
[346809703,1735301836672,-500.0,0.00010883,2]
[346809704,1735301836700,-1765.65,0.00010883,2]
[346809705,1735301836726,-500.0,0.00010883,2]
[346809706,1735301836751,-500.0,0.00010883,2]
[346809707,1735301836777,-822.67,0.00010883,2]
[346809708,1735301836801,-504.24096238,0.00010883,2]
[346809709,1735301836825,-1073.11,0.00010883,2]
[346809710,1735301836850,-500.0,0.00010883,2]
[346809711,1735301836875,-500.0,0.00010883,2]
[346809712,1735301836900,-1545.96,0.00010883,2]
[346809713,1735301836924,-500.0,0.00010883,2]
[346809714,1735301836949,-1253.72,0.00010883,2]
[346809715,1735301836973,-640.25,0.00010883,2]
[346809716,1735301836997,-2356.53,0.00010883,2]
[346809717,1735301837020,-500.0,0.00010883,2]
[346809718,1735301837044,-842.93,0.00010883,2]
[346809719,1735301837068,-1284.86,0.00010883,2]
[346809720,1735301837093,-500.0,0.00010883,2]
[346809721,1735301837116,-1036.26,0.00010883,2]
[346809722,1735301837141,-510.46659012,0.00010883,2]
[346809723,1735301837165,-879.85,0.00010883,2]
[346809724,1735301837188,-500.0,0.00010883,2]
[346809725,1735301837215,-500.0,0.00010883,2]
[346809726,1735301837239,-640.47,0.00010883,2]
[346809727,1735301837263,-500.0,0.00010883,2]
[346809728,1735301837287,-500.0,0.00010883,2]
[346809729,1735301837310,-500.0,0.00010883,2]
[346809730,1735301837333,-2363.46,0.00010883,2]
[346809731,1735301837356,-500.0,0.00010883,2]
[346809732,1735301837380,-500.0,0.00010883,2]
[346809733,1735301837403,-500.0,0.00010883,2]
[346809734,1735301837426,-500.0,0.00010883,2]
[346809735,1735301837450,-555.44,0.00010883,2]
[346809736,1735301837474,-500.0,0.00010883,2]
[346809737,1735301837497,-1494.71,0.00010883,2]
[346809738,1735301837520,-1484.21,0.00010883,2]
[346809739,1735301837542,-512.43,0.00010883,2]
[346809740,1735301837566,-500.0,0.00010883,2]
[346809741,1735301837589,-500.0,0.00010883,2]
[346809742,1735301837613,-1466.14,0.00010883,2]
[346809743,1735301837636,-827.34,0.00010883,2]
[346809744,1735301837660,-500.0,0.00010883,2]
[346809745,1735301837683,-542.04675135,0.00010883,2]
[346809746,1735301837707,-500.0,0.00010883,2]
[346809747,1735301837730,-500.0,0.00010883,2]
[346809748,1735301837753,-500.0,0.00010883,2]
[346809749,1735301837776,-520.29,0.00010883,2]
[346809750,1735301837800,-500.0,0.00010883,2]
[346809751,1735301837823,-500.0,0.00010883,2]
[346809752,1735301837848,-1585.66,0.00010883,2]
[346809753,1735301837872,-500.0,0.00010883,2]
[346809754,1735301837896,-500.0,0.00010883,2]
[346809755,1735301837920,-500.0,0.00010883,2]
[346809756,1735301837945,-500.0,0.00010883,2]
[346809757,1735301837970,-500.0,0.00010883,2]
[346809758,1735301837995,-1772.46,0.00010883,2]
[346809759,1735301838018,-500.0,0.00010883,2]
[346809760,1735301838043,-500.0,0.00010883,2]
[346809761,1735301838067,-500.0,0.00010883,2]
[346809762,1735301838091,-500.0,0.00010883,2]
[346809763,1735301838117,-2188.59,0.00010883,2]
[346809764,1735301838140,-500.0,0.00010883,2]
[346809765,1735301838165,-1923.06,0.00010883,2]
[346809766,1735301838189,-500.0,0.00010883,2]
[346809767,1735301838217,-500.0,0.00010883,2]
[346809768,1735301838242,-510.21365252,0.00010883,2]
[346809769,1735301838268,-328.72682085,0.00010883,2]
[346809770,1735301838292,-500.0,0.00010883,2]
[346809771,1735301838317,-500.0,0.00010883,2]
[346809772,1735301838340,-2592.35,0.00010883,2]
[346809773,1735301838364,-500.0,0.00010883,2]
[346809774,1735301838390,-500.0,0.00010883,2]
[346809775,1735301838415,-1776.64,0.00010883,2]
[346809776,1735301838439,-1464.66,0.00010883,2]
[346809777,1735301838464,-500.0,0.00010883,2]
[346809778,1735301838488,-821.19,0.00010883,2]
[346809779,1735301838511,-380.44372162,0.00010883,2]
[346809780,1735301838535,-2281.51,0.00010883,2]
[346809781,1735301838559,-500.0,0.00010883,2]
[346809782,1735301838583,-500.0,0.00010883,2]
[346809783,1735301838607,-500.0,0.00010883,2]
[346809784,1735301838631,-823.47,0.00010883,2]
[346809785,1735301838655,-938.92,0.00010883,2]
[346809786,1735301838691,-500.0,0.00010883,2]
[346809787,1735301838715,-2662.54,0.00010883,2]
[346809788,1735301838740,-500.0,0.00010883,2]
[346809789,1735301838767,-500.0,0.00010883,2]
[346809790,1735301838792,-1896.66,0.00010883,2]
[346809791,1735301838816,-500.0,0.00010883,2]
[346809792,1735301838840,-500.0,0.00010883,2]
[346809793,1735301838865,-1134.55,0.00010883,2]
[346809794,1735301838889,-2191.29,0.00010883,2]
[346809795,1735301838914,-500.0,0.00010883,2]
[346809796,1735301838939,-500.0,0.00010883,2]
[346809797,1735301838964,-968.79,0.00010883,2]
[346809798,1735301838991,-500.0,0.00010883,2]
[346809799,1735301839016,-1732.97,0.00010883,2]
[346809800,1735301839040,-775.87,0.00010883,2]
[346809801,1735301839064,-500.0,0.00010883,2]
[346809802,1735301839087,-500.0,0.00010883,2]
[346809803,1735301839111,-1177.68,0.00010883,2]
[346809804,1735301839135,-500.0,0.00010883,2]
[346809805,1735301839159,-500.0,0.00010883,2]
[346809806,1735301839183,-893.78,0.00010883,2]
[346809807,1735301839211,-500.0,0.00010883,2]
[346809808,1735301839237,-500.0,0.00010883,2]
[346809809,1735301839264,-525.58,0.00010883,2]
[346809810,1735301839290,-500.0,0.00010883,2]
[346809811,1735301839315,-1664.1,0.00010883,2]
[346809812,1735301839339,-1503.6,0.00010883,2]
[346809813,1735301839362,-679.09,0.00010883,2]
[346809814,1735301839386,-500.0,0.00010883,2]
[346809815,1735301839411,-3582.65,0.00010883,2]
[346809816,1735301839666,-500.0,0.00010883,2]
[346809817,1735301839691,-1339.78,0.00010883,2]
[346809818,1735301839715,-630.37,0.00010883,2]
[346809819,1735301839737,-500.0,0.00010883,2]
[346809820,1735301839761,-500.0,0.00010883,2]
[346809821,1735301839784,-500.0,0.00010883,2]
[346809822,1735301839808,-500.0,0.00010883,2]
[346809823,1735301839831,-1374.76,0.00010883,2]
[346809824,1735301839855,-500.0,0.00010883,2]
[346809825,1735301839879,-1387.29,0.00010883,2]
[346809826,1735301839904,-500.0,0.00010883,2]
[346809827,1735301839927,-500.0,0.00010883,2]
[346809828,1735301839952,-500.0,0.00010884,2]
[346809829,1735301839976,-500.0,0.00010884,2]
[346809830,1735301840002,-500.0,0.00010884,2]
[346809831,1735301840026,-500.0,0.00010884,2]
[346809832,1735301840049,-500.0,0.00010884,2]
[346809833,1735301840073,-500.0,0.00010884,2]
[346809834,1735301840097,-500.0,0.00010884,2]
[346809835,1735301840121,-500.0,0.00010884,2]
[346809836,1735301840146,-500.0,0.00010884,2]
[346809837,1735301840170,-500.0,0.00010884,2]
[346809838,1735301840193,-500.0,0.00010884,2]
[346809839,1735301840219,-500.0,0.00010884,2]
[346809840,1735301840241,-500.0,0.00010884,2]
[346809841,1735301840266,-500.0,0.00010884,2]
[346809842,1735301840290,-500.0,0.00010884,2]
[346809843,1735301840315,-500.0,0.00010884,2]
[346809844,1735301840338,-500.0,0.00010884,2]
[346809845,1735301840361,-500.0,0.00010884,2]
[346809846,1735301840384,-500.0,0.00010884,2]
[346809847,1735301840407,-500.0,0.00010884,2]
[346809848,1735301840430,-500.0,0.00010884,2]
[346809849,1735301840453,-500.0,0.00010884,2]
[346809850,1735301840475,-500.0,0.00010884,2]
[346809851,1735301840498,-504.35,0.00010884,2]
[346809852,1735301840521,-500.0,0.00010884,2]
[346809853,1735301840544,-500.0,0.00010884,2]
[346809854,1735301840567,-1036.49,0.00010884,2]
[346809855,1735301840590,-2161.11,0.00010884,2]
[346809856,1735301840613,-500.0,0.00010884,2]
[346809857,1735301840637,-720.48,0.00010884,2]
[346809858,1735301840660,-644.32,0.00010884,2]
[346809859,1735301840684,-1697.72,0.00010884,2]
[346809860,1735301840707,-500.0,0.00010884,2]
[346809861,1735301840730,-586.51,0.00010884,2]